[Event "FRA-ch Teams Top 16-Bas 2022"]
[Site "Chartres"]
[Date "2022.06.19"]
[Round "11.10"]
[White "Sochacki, Christophe"]
[Black "Buscara, Sevan"]
[Result "1/2-1/2"]
[ECO "D27"]
[WhiteElo "2493"]
[BlackElo "2385"]
[Annotator "TA"]
[PlyCount "97"]
[EventDate "2022.06.16"]
[EventType "team-tourn"]
[EventCountry "FRA"]
[SourceTitle "playchess.com"]
[Source "ChessBase"]
[SourceQuality "1"]
[TimeControl "40/5400+30:1800+30"]

{[%evp 19,97,12,20,0,4,5,5,5,16,0,0,0,0,0,4,0,16,18,36,29,37,40,42,41,40,28,27,29,35,20,20,20,20,20,20,20,27,20,29,29,29,20,20,20,29,21,29,20,21,8,8,0,15,0,26,22,29,8,8,0,0,0,0,0,0,0,7,7,8,8,8,24,72,72,72,76,76,0,0,0]} 1. d4 {[%emt 0:00:04]} d5 {[%emt 0:00:27]} 2. c4 {[%emt 0:00:07]} e6 {[%emt 0:00:22]} 3. Nf3 {[%emt 0:00:25]} dxc4 {[%emt 0:01:15]} 4. e3 {[%emt 0:02:55]} a6 {[%emt 0:00:47]} 5. Bxc4 {[%emt 0:00:18]} Nf6 {[%emt 0:01:09]} 6. O-O {[%emt 0:03:54]} c5 {[%emt 0:01:21]} 7. a4 {[%emt 0:01:08]} Nc6 {[%emt 0:00:37]} 8. Nc3 {[%emt 0:00:59]} Be7 {[%emt 0:07:52]} 9. dxc5 {[%emt 0:09:02]} Qxd1 {[%emt 0:03:36]} 10. Rxd1 {[%emt 0:00:02]} Bxc5 {[%emt 0:01:40]} 11. Ng5 {[%emt 0:13:41] D27: Queen's Gambit Accepted: Classical main line: 7 e4!? and 7 a4.} Be7 {[%emt 0:04:34]} 12. Nge4 {[%emt 0:02:39]} Nxe4 {[%emt 0:06:46]} 13. Nxe4 {[%emt 1:01:46]} O-O {[%emt 0:08:55]} 14. b3 {[%emt 0:00:00] [#]} Rd8 $146 {[%emt 0:03:24]} ({Predecessor:} 14... b6 15. Be2 Rd8 16. Rxd8+ Nxd8 17. Ba3 Bxa3 18. Rxa3 e5 19. b4 Kf8 20. Kf1 Ke7 {½-½ (30) Wicklund Hansen,G (2107)-Larsen,S (2351) ICCF email 2004}) 15. Rxd8+ {[%emt 0:00:00]} Nxd8 {[%emt 0:00:54]} 16. Bb2 {[%emt 0:00:00]} Bd7 {[%emt 0:00:41]} 17. Rd1 {[%emt 0:00:00]} Be8 {[%emt 0:01:42]} (17... Bc6 $5 {[%cal Rc6e4]} 18. Nd6 Kf8 $11) 18. Nd6 {[%emt 0:00:00]} Bxd6 {[%emt 0:00:51]} 19. Rxd6 {[%emt 0:00:00]} Nc6 {[%emt 0:00:22]} 20. Bc3 {[%emt 0:00:00] Against Na5} Rd8 {[%emt 0:02:47]} 21. Rxd8 {[%emt 0:00:00]} Nxd8 $14 {[%emt 0:00:04][%mdl 4096] Endgame KBB-KBN} 22. Ba5 {[%emt 0:00:00]} Nc6 {[%emt 0:00:41]} 23. Bc7 {[%emt 0:00:00]} Ne7 {[%emt 0:01:21]} 24. e4 {[%emt 0:00:00]} b5 {[%emt 0:03:48]} 25. Bd3 {[%emt 0:00:00]} bxa4 {[%emt 0:00:58]} 26. bxa4 {[%emt 0:00:00]} Bxa4 {[%emt 0:00:20]} 27. Bxa6 {[%emt 0:00:00]} Bb3 {[%emt 0:01:28]} 28. f3 {[%emt 0:00:00]} Ng6 {[%emt 0:00:34]} 29. Kf2 {[%emt 0:00:00]} e5 {[%emt 0:00:26]} 30. Bb7 {[%emt 0:00:00]} f6 {[%emt 0:03:56]} 31. g3 {[%emt 0:00:00]} Be6 {[%emt 0:02:27]} 32. Ke3 {[%emt 0:00:00]} Kf7 {[%emt 0:00:41]} 33. Bd6 {[%emt 0:00:00]} Ne7 {[%emt 0:01:23]} 34. f4 {[%emt 0:00:00]} exf4+ {[%emt 0:00:36]} 35. gxf4 {[%emt 0:00:00]} g6 {[%emt 0:02:13]} 36. Kd4 {[%emt 0:00:00]} Nc8 {[%emt 0:02:38]} 37. Bc5 {[%emt 0:00:00]} Ne7 {[%emt 0:00:38]} 38. Ba3 {[%emt 0:00:00]} h6 {[%emt 0:01:01]} 39. Bd5 {[%emt 0:07:22]} Nxd5 {[%emt 0:02:40]} 40. exd5 $11 {[%emt 0:00:04] KB-KB} Bd7 {[%emt 0:01:24]} 41. Kc5 {[%emt 0:30:09]} g5 {[%emt 0:30:17]} 42. Kd6 {[%emt 0:00:21]} Bf5 {[%emt 0:01:31]} 43. fxg5 {[%emt 0:01:02]} hxg5 {[%emt 0:00:43]} 44. Kc7 {[%emt 0:00:16]} Ke8 {[%emt 0:01:09]} 45. Bb2 {[%emt 0:00:05]} g4 {[%emt 0:00:23]} (45... Kf7 $11) 46. Bxf6 $16 {[%emt 0:00:04]} Bd7 {[%emt 0:00:10]} 47. Be5 {[%emt 0:01:14]} Bf5 {[%emt 0:00:09]} 48. h4 {[%emt 0:00:09]} (48. Bd4 $16) 48... gxh3 $11 {[%emt 0:00:06]} 49. Bh2 {[%emt 0:00:07] Weighted Error Value: White=0.07 (flawless) /Black=0.06 (flawless)} 1/2-1/2

[Event "FRA-ch Teams Top 16-Bas 2022"]
[Site "Chartres"]
[Date "2022.06.19"]
[Round "11.11"]
[White "Rouler, Charly"]
[Black "Dutreuil, Raphael"]
[Result "1-0"]
[ECO "A41"]
[WhiteElo "2345"]
[BlackElo "2309"]
[Annotator "TA"]
[PlyCount "39"]
[EventDate "2022.06.16"]
[EventType "team-tourn"]
[EventCountry "FRA"]
[SourceTitle "playchess.com"]
[Source "ChessBase"]
[SourceQuality "1"]
[TimeControl "40/5400+30:1800+30"]

{[%evp 12,39,61,48,84,42,360,364,363,372,353,369,358,306,329,300,305,334,545,535,500,497,465,425,571,590,558,543,535,518]} 1. Nf3 {[%emt 0:00:06]} g6 {[%emt 0:03:33]} 2. g3 {[%emt 0:00:47]} Bg7 {[%emt 0:00:12]} 3. d4 {[%emt 0:00:12]} d6 {[%emt 0:01:01]} 4. Bg2 {[%emt 0:00:38]} e5 {[%emt 0:01:30]} 5. dxe5 {[%emt 0:06:23]} dxe5 {[%emt 0:00:27]} 6. Qxd8+ {[%emt 0:00:02]} Kxd8 {[%emt 0:00:08]} 7. Nc3 {[%emt 0:00:10] 7.0-0 is the hot move.} f6 {[%emt 0:01:12] A41: 1 d4 d6: Tartakower System and Modern Defence.} 8. Bd2 {[%emt 0:02:35] [#] White is more active.} Be6 $146 {[%emt 0:35:18][%mdl 8192] [#]} ({Better is} 8... c6 $14) ({Predecessor:} 8... c6 9. Ne4 Kc7 10. O-O-O Na6 11. Ne1 Bg4 12. f3 Bf5 13. f4 Bh6 14. Nd3 exf4 15. gxf4 {1-0 (44) Dizdarevic,E (2509)-Burovic,I (2374) Sarajevo 2014}) 9. Ng5 $1 $18 {[%mdl 512]} fxg5 {[%emt 0:00:35] White is winning.} 10. Bxb7 {[%emt 0:08:40]} c6 {[%emt 0:00:14]} 11. Bxa8 {[%emt 0:00:09]} (11. Bxg5+ Kc7 12. Bxa8 Nf6 $16) 11... Kc7 {[%emt 0:13:23]} 12. b4 {[%emt 0:00:19][%cal Bb2b4,Bb4b5][%mdl 32]} (12. Bxg5 Nd7 $16) 12... a6 {[%emt 0:14:15]} 13. a4 {[%emt 0:00:19] aiming for b5.} (13. Bxg5 Nh6 $14) 13... Ne7 {[%emt 0:02:21]} 14. b5 {[%emt 1:17:10]} ({Not} 14. Bxg5 Nd5 $16) 14... Nd5 {[%emt 0:00:46] [#]} (14... Nd7 15. Bxc6 (15. Bxg5 e4 $18) (15. bxa6 Rxa8 16. Bxg5 Nf5 $17) 15... Nxc6 16. bxc6 Kxc6) 15. Nxd5+ {[%emt 0:00:00] White is clearly winning.} cxd5 {[%emt 0:01:55]} 16. e4 {[%emt 0:00:00]} d4 {[%emt 0:00:44]} 17. O-O {[%emt 0:00:00]} Kb6 {[%emt 0:11:15]} 18. bxa6 {[%emt 0:00:00]} Nxa6 {[%emt 0:06:52]} 19. Rfb1+ {[%emt 0:00:00]} Ka7 {[%emt 0:00:13]} 20. Bc6 {[%emt 0:00:00] Black got outplayed after the opening.  Weighted Error Value: White=0.12 (very precise) /Black=0.84} 1-0

[Event "FRA-ch Teams Top 16-Bas 2022"]
[Site "Chartres"]
[Date "2022.06.19"]
[Round "11.12"]
[White "Sochacki, Wojtek"]
[Black "Marzolo, Cyril"]
[Result "1-0"]
[ECO "B12"]
[WhiteElo "2324"]
[BlackElo "2376"]
[Annotator "TA"]
[PlyCount "61"]
[EventDate "2022.06.16"]
[EventType "team-tourn"]
[EventCountry "FRA"]
[SourceTitle "playchess.com"]
[Source "ChessBase"]
[SourceQuality "1"]
[TimeControl "40/5400+30:1800+30"]

{[%evp 12,61,24,27,79,61,88,68,84,48,39,64,93,85,168,157,175,164,165,134,103,133,223,201,256,241,227,168,176,144,239,230,307,215,231,158,500,131,134,122,119,117,110,116,185,181,168,140,211,221,444,399]} 1. e4 {[%emt 0:13:42]} c6 {[%emt 0:00:07]} 2. d4 {[%emt 0:00:40]} d5 {[%emt 0:00:05]} 3. e5 {[%emt 0:00:10]} Bf5 {[%emt 0:00:28]} 4. h4 {[%emt 0:00:06]} h6 {[%emt 0:00:52]} 5. g4 {[%emt 0:02:07]} Bh7 {[%emt 0:00:07]} 6. e6 {[%emt 0:07:32]} fxe6 {[%emt 0:01:42]} 7. Bd3 {[%emt 0:21:58] White wants to play Bxh7.} Be4 {[%emt 0:13:26] B12: Caro-Kann: Advance Variation.} (7... c5 $11 {remains equal.}) 8. Nf3 $16 {[%emt 0:10:45][%mdl 1024] Black must now prevent Nc3. White has strong compensation.} Nd7 {[%emt 0:06:16]} 9. Nc3 {[%emt 0:09:20]} Ngf6 {[%emt 0:13:28] White is slightly better.} 10. Rg1 {[%emt 0:01:47] [#]} Qb6 $146 {[%emt 0:05:17]} ({Predecessor:} 10... Qc7 11. g5 hxg5 12. hxg5 Bxf3 13. Qxf3 Qh2 14. Bg6+ Kd8 15. Rf1 Rh3 16. Bf4 Rxf3 17. Bxh2 {1-0 (48) Zhou,L (1873)-Zimmer,E (1910) Magdeburg 2021}) 11. g5 $1 {[%emt 0:01:27]} Bxf3 {[%emt 0:00:14]} 12. Qxf3 {[%emt 0:00:35]} Qxd4 {[%emt 0:00:05]} (12... hxg5 $16 13. hxg5 Ne4) 13. gxf6 $18 {[%emt 0:02:20]} exf6 {[%emt 0:02:54] [#]} 14. Qh5+ $1 {[%emt 0:16:45]} Ke7 {[%emt 0:05:29]} 15. Be3 {[%emt 0:01:38]} Qe5 {[%emt 0:03:21]} 16. Qg4 {[%emt 0:00:23] Chess con chili. 0x0.00207bc817cadp-1022s more active pieces. The black rooks are badly placed.} Qd6 {[%emt 0:28:35]} (16... f5 $16 {is a better defense.} 17. Qb4+ Kd8) 17. O-O-O {[%emt 0:02:52]} g5 {[%emt 0:00:04]} 18. hxg5 {[%emt 0:04:47]} hxg5 {[%emt 0:00:37]} 19. Rh1 {[%emt 0:00:19]} Ne5 {[%emt 0:04:26]} 20. Qg2 {[%emt 0:00:04]} Bh6 {[%emt 0:04:48]} (20... Bg7 $16 21. Be2 Ng6) 21. Be2 {[%emt 0:00:24] Hoping for Ne4.} Nf7 {[%emt 0:01:11]} 22. Bh5 {[%emt 0:00:59] Strongly threatening Ne4.} b6 {[%emt 0:00:29]} 23. Rh3 {[%emt 0:00:43] aiming for Bxf7.} Rag8 $2 {[%emt 0:00:49]} (23... Ne5 $16 {is tougher.} 24. Be2 Rag8) 24. Bxf7 $2 {[%emt 0:00:35]} (24. Ne4 $1 $18 {[%cal Re4d6]} Qb8 {[#]} 25. Nxf6 $1 {[%mdl 512]}) 24... Kxf7 $16 {[%emt 0:00:05]} 25. Rdh1 {[%emt 0:00:17]} Bg7 {[%emt 0:00:19]} 26. Ne2 {[%emt 0:00:09]} Rxh3 {[%emt 0:01:24]} 27. Rxh3 {[%emt 0:00:03]} Rh8 {[%emt 0:01:23]} (27... Qe5 $16) 28. Rxh8 $18 {[%emt 0:00:19]} Bxh8 {[%emt 0:00:01]} 29. f4 {[%emt 0:00:01][%cal Bf2f4,Bf4g5][%mdl 32]} e5 {[%emt 0:04:49]} (29... d4 $16 30. Bd2 (30. Bxd4 gxf4 31. Qg4 e5 $14) 30... d3) 30. fxg5 {[%emt 0:00:07]} f5 $2 {[%emt 0:00:04]} (30... fxg5 {was necessary.} 31. Qxg5 Qg6) 31. Qh3 $1 {[%emt 0:00:22][%csl LRf5,LRh8] Weighted Error Value: White=0.48/Black=0.60} 1-0

[Event "FRA-ch Teams Top 16-Bas 2022"]
[Site "Chartres"]
[Date "2022.06.19"]
[Round "11.13"]
[White "Benitah, Yohan"]
[Black "Caille, Hugo"]
[Result "1-0"]
[ECO "D20"]
[WhiteElo "2383"]
[BlackElo "2177"]
[Annotator "TA"]
[PlyCount "61"]
[EventDate "2022.06.16"]
[EventType "team-tourn"]
[EventCountry "FRA"]
[SourceTitle "playchess.com"]
[Source "ChessBase"]
[SourceQuality "1"]
[TimeControl "40/5400+30:1800+30"]

{[%evp 9,61,15,24,41,78,64,61,79,68,64,62,78,67,75,67,77,68,61,65,64,66,65,69,64,113,69,106,109,108,88,77,0,4,0,20,0,12,18,96,94,215,222,216,222,248,245,508,500,663,611,1919,1715,1406,772]} 1. d4 {[%emt 0:00:02]} d5 {[%emt 0:00:23]} 2. c4 {[%emt 0:00:07]} dxc4 {[%emt 0:00:13]} 3. e4 {[%emt 0:00:17]} b5 {[%emt 0:00:16]} 4. a4 {[%emt 0:00:48]} c6 {[%emt 0:00:45]} 5. axb5 {[%emt 0:00:10]} cxb5 {[%emt 0:00:24]} 6. Nc3 {[%emt 0:00:03][%cal Bb1c3,Bc3d5,Bd5c7][%mdl 32] D20: Queen's Gambit Accepted: 3 e3 and 3 e4.} Qb6 {[%emt 0:04:20]} 7. Nd5 {[%emt 0:02:49]} Qb7 {[%emt 0:03:42]} 8. Bf4 {[%emt 0:00:11] White is slightly better.} e5 {[%emt 0:00:52]} 9. Bxe5 {[%emt 0:00:08]} Nd7 $1 {[%emt 0:02:04]} 10. Bf4 {[%emt 0:00:09] White is much more active.} Ngf6 {[%emt 0:02:01]} 11. Nc7+ $1 {[%emt 0:00:12]} Kd8 {[%emt 0:00:05] [#] Hoping for ...Bb4+.} 12. Nxa8 {[%emt 0:00:04][%cal Of2f3]} Qxe4+ {[%emt 0:03:14]} 13. Ne2 {[%emt 0:00:16]} Qxa8 {[%emt 0:01:25]} 14. Nc3 {[%emt 0:00:12]} Bb4 {[%emt 0:02:15]} 15. f3 $1 {[%emt 0:01:18] [#]} Nd5 $146 {[%emt 0:08:49]} ({Predecessor:} 15... Re8+ 16. Be2 a5 17. O-O Qc6 18. Re1 Bxc3 19. bxc3 Nd5 20. Qd2 b4 21. Rxa5 Nxc3 {½-½ (71) Fodor,B (2120)-Dev,S (2243) Budapest 2021}) 16. Bd2 {[%emt 0:00:09]} Re8+ {[%emt 0:01:32]} (16... Bxc3 $14 {might be stronger.} 17. bxc3 Re8+ 18. Be2 N7f6) 17. Be2 {[%emt 0:03:52]} Nxc3 {[%emt 0:07:28]} 18. bxc3 {[%emt 0:03:54]} Bd6 {[%emt 0:03:58] [#]} 19. Qb1 $1 {[%emt 0:03:04][%csl LRb5,LRh7]} Qd5 {[%emt 0:02:54]} 20. Kf2 {[%emt 0:11:01]} (20. Qd1 a6 $11) (20. Rxa7 $16 {Kf2 is the strong threat.} b4 21. Qxh7) 20... Nc5 $132 {[%emt 0:14:24][%mdl 2048] Threatens to win with ...Nb3. Black is not keeping still} (20... Qe6 $2 21. Re1 a6 22. Qxh7 $18) 21. Rxa7 {[%emt 0:11:41]} Nb3 $1 {[%emt 0:06:02]} (21... Qe6 $2 22. Re1 Qd5 23. Qxh7 $18 (23. Qxb5 $2 Nd3+ 24. Bxd3 Qxb5 $19)) 22. Qa2 {[%emt 0:02:59]} Bb7 {[%emt 0:10:15]} 23. Bd1 {[%emt 0:04:32]} Nxd2 {[%emt 0:10:48]} (23... Kc8 $11 {keeps the balance.}) 24. Qxd2 $16 {[%emt 0:00:39] aiming for Bc2. The board is on fire.} g5 {[%emt 0:00:14] Loses the game.} (24... b4 $16 {was called for.}) 25. Re1 $18 {[%emt 0:07:49]} Rxe1 {[%emt 0:00:54]} 26. Qxe1 {[%emt 0:00:02] And now Bc2 would win.} Bb8 {[%emt 0:01:53]} 27. Ra2 {[%emt 0:01:49]} Bxh2 $2 {[%emt 0:04:28]} (27... Bd6 28. Ra5 Bc7) 28. g3 {[%emt 0:02:11] White is clearly winning.} ({Not} 28. Ra7 Qd6 29. Kf1 Bg3 $11) 28... Qd6 {[%emt 0:03:50]} 29. Qe5 {[%emt 0:01:11]} Qh6 {[%emt 0:00:12]} 30. Qb8+ {[%emt 0:01:27]} Bc8 {[%emt 0:00:10]} 31. Ra8 {[%emt 0:00:46] Weighted Error Value: White=0.12 (very precise) /Black=0.36} 1-0

[Event "FRA-ch Teams Top 16-Bas 2022"]
[Site "Chartres"]
[Date "2022.06.19"]
[Round "11.14"]
[White "Cantin, Loic"]
[Black "Brailly-Vignal, Bastien"]
[Result "1-0"]
[ECO "A05"]
[WhiteElo "2199"]
[BlackElo "2372"]
[Annotator "TA"]
[PlyCount "121"]
[EventDate "2022.06.16"]
[EventType "team-tourn"]
[EventCountry "FRA"]
[SourceTitle "playchess.com"]
[Source "ChessBase"]
[SourceQuality "1"]
[TimeControl "40/5400+30:1800+30"]

{[%evp 11,121,24,20,23,49,40,43,19,22,9,25,20,33,10,17,14,27,0,15,1,16,10,51,4,14,11,22,12,82,43,60,62,120,92,111,113,120,130,139,88,153,155,132,133,139,133,121,116,144,132,144,71,100,37,102,-6,106,98,189,195,293,107,519,508,503,461,475,465,511,504,532,516,497,495,467,442,464,464,465,465,604,488,563,564,575,573,631,457,620,586,667,549,620,623,2078,2084,29978,29979,5614,2565,1865,1500,29982,29983,29985,29986,29986,29987,29987,29988,29990,29987]} 1. Nf3 {[%emt 0:00:04]} Nf6 {[%emt 0:00:15]} 2. g3 {[%emt 0:00:12]} b6 {[%emt 0:00:19]} 3. Bg2 {[%emt 0:00:14]} Bb7 {[%emt 0:00:04]} 4. O-O {[%emt 0:00:06]} e6 {[%emt 0:00:12]} 5. d3 {[%emt 0:00:24]} Be7 {[%emt 0:00:42]} 6. e4 {[%emt 0:00:30]} d6 {[%emt 0:00:25]} 7. c4 {[%emt 0:04:29] A05: Réti Opening: 1 Nf3 Nf6.} Nbd7 {[%emt 0:02:41]} 8. Nc3 {[%emt 0:03:18]} c5 {[%emt 0:02:46]} 9. h3 {[%emt 0:05:19] White is slightly better.} a6 {[%emt 0:02:17]} 10. Nh2 {[%emt 0:04:45][%cal Oe4e5]} Qc7 {[%emt 0:02:50] [#]} 11. f4 $146 {[%emt 0:01:06]} ({Predecessor:} 11. Be3 Rc8 12. f4 Qb8 13. g4 b5 14. g5 Ng8 15. b3 b4 16. Ne2 Nb6 17. Ng3 {1-0 (35) Tiefenbach,W (1990)-Buecherl,K (1655) Bayern 2000}) 11... Nb8 {[%emt 0:03:33]} 12. g4 {[%emt 0:06:27]} h6 {[%emt 0:05:39]} 13. Be3 {[%emt 0:02:31]} Nc6 {[%emt 0:04:04]} 14. Rc1 {[%emt 0:14:12]} Nd7 {[%emt 0:01:22]} 15. Qd2 {[%emt 0:07:45]} Bf6 {[%emt 0:05:15]} 16. Ne2 {[%emt 0:04:11]} g6 {[%emt 0:08:38]} 17. Kh1 {[%emt 0:04:32]} (17. Nf3 $14) 17... Bg7 {[%emt 0:08:29]} 18. Nf3 {[%emt 0:09:39]} Ne7 {[%emt 0:06:10]} 19. Ng3 {[%emt 0:02:50]} h5 {[%emt 0:05:55]} (19... O-O-O $11 {keeps the balance.}) 20. g5 {[%emt 0:01:49]} h4 {[%emt 0:03:35]} 21. Ne2 {[%emt 0:00:14]} d5 {[%emt 0:00:54]} (21... b5 $14) 22. cxd5 $16 {[%emt 0:04:37]} exd5 {[%emt 0:01:40]} 23. e5 {[%emt 0:00:18]} Qd8 {[%emt 0:03:30]} 24. d4 {[%emt 0:00:40][%cal Rd4c5]} c4 {[%emt 0:02:51]} 25. Bf2 {[%emt 0:00:27]} (25. Qe1 $142 $1) 25... Nf8 {[%emt 0:03:33]} ({Black should try} 25... Bc8) 26. Nxh4 {[%emt 0:00:54]} ({Don't do} 26. Bxh4 $6 Bc8 $14) 26... Bc8 {[%emt 0:01:18]} 27. b3 {[%emt 0:02:38]} b5 {[%emt 0:00:21]} 28. bxc4 {[%emt 0:01:38]} bxc4 {[%emt 0:00:08]} 29. Kh2 {[%emt 0:02:37] White is more active.} Be6 {[%emt 0:01:39]} 30. Be1 {[%emt 0:02:28]} Rb8 {[%emt 0:01:14]} 31. Rf3 {[%emt 0:00:41]} (31. Nc3 $142) 31... Rb6 {[%emt 0:03:35]} 32. Qa5 {[%emt 0:01:52]} (32. Nc3 $16) 32... Rb2 {[%emt 0:05:16]} ({Better is} 32... Nd7 $14) 33. Qxd8+ {[%emt 0:02:30]} Kxd8 {[%emt 0:00:03] [#]} 34. Nc3 {[%emt 0:00:37]} Nc6 {[%emt 0:02:17]} (34... Nd7 $16 {was necessary.}) 35. Rf2 $18 {[%emt 0:00:22]} Rb8 {[%emt 0:05:33] [#]} (35... Rxf2 $142 36. Bxf2 Ne7) 36. Rd2 $2 {[%emt 0:01:00]} ({But not} 36. Bxd5 $6 Bxd5 37. Nxd5 Rxh4 $18) (36. Nxd5 $1 $18 {has better winning chances.} Rxh4 37. Nf6) 36... Nb4 $2 {[%emt 0:01:46][%mdl 8192] Loses the game.} (36... Ne7 $16 {is a better chance.}) 37. Rb1 {[%emt 0:01:52]} Nd7 {[%emt 0:00:04]} 38. Rdb2 {[%emt 0:00:28]} Bf8 {[%emt 0:04:08]} 39. a3 {[%emt 0:01:25]} Nc6 {[%emt 0:00:27]} 40. Rxb8+ {[%emt 0:00:15]} Ncxb8 {[%emt 0:01:58]} 41. Nxd5 {[%emt 0:33:25]} Nc6 {[%emt 0:05:20] Prevents Ba5+.} 42. Rd1 {[%emt 0:00:00][%cal Bb1d1,Bd1d4,Bd4e4,Be4e3][%mdl 32]} Bxa3 {[%emt 0:03:23]} 43. Ne3 {[%emt 0:00:00]} Nxd4 {[%emt 0:06:04]} 44. Rxd4 {[%emt 0:00:00]} Bc5 {[%emt 0:01:55]} 45. Re4 {[%emt 0:00:00]} Nb6 {[%emt 0:07:01]} 46. Nf3 {[%emt 0:00:00]} Bxe3 {[%emt 0:04:01]} 47. Rxe3 {[%emt 0:00:00]} Nd5 {[%emt 0:00:13]} 48. Re4 {[%emt 0:00:00]} c3 {[%emt 0:01:29]} 49. Rc4 {[%emt 0:00:00] Threatens to win with Nd4.} Kd7 {[%emt 0:05:03]} 50. Bxc3 {[%emt 0:00:00]} Rb8 {[%emt 0:00:10]} 51. Nd2 {[%emt 0:00:00]} Ne3 {[%emt 0:01:34]} 52. Bc6+ {[%emt 0:00:00]} Kc7 {[%emt 0:00:37]} 53. Ba5+ {[%emt 0:00:00]} Kc8 {[%emt 0:00:12]} 54. Rd4 {[%emt 0:00:00][%csl Ga5][%cal Rd4d8]} Bd5 {[%emt 0:00:47]} 55. Bxd5 {[%emt 0:12:39]} Rb5 {[%emt 0:00:10] [#]} 56. Rc4+ $1 {[%emt 0:00:00]} Nxc4 {[%emt 0:00:13]} (56... Kb8 57. Bxf7) 57. Nxc4 {[%emt 0:00:00] White mates.} Kd7 {[%emt 0:00:59]} 58. Bxf7 {[%emt 0:00:00]} Ke7 {[%emt 0:00:43]} 59. Bxg6 {[%emt 0:00:00]} Ke6 {[%emt 0:00:30] [#]} 60. Bf7+ $1 {[%emt 0:00:00]} Kd7 {[%emt 0:00:27]} (60... Kxf7 61. Nd6+) 61. Be8+ {[%emt 0:03:00] Weighted Error Value: White=0.23 (precise) /Black=0.51} 1-0